fUST/lending_fUST_20250718
["ID","MTS","AMOUNT","RATE_DAILY","PERIOD"]
[372902160,1752797438461,-460.0,0.00016438,2]
[372902161,1752797438470,-460.0,0.00016438,2]
[372902162,1752797438480,-460.0,0.00016438,2]
[372902163,1752797438489,-460.0,0.00016438,2]
[372902164,1752797438499,-460.0,0.00016438,2]
[372902165,1752797438508,-460.0,0.00016438,2]
[372902166,1752797438519,-460.0,0.00016438,2]
[372902167,1752797438528,-460.0,0.00016438,2]
[372902168,1752797438538,-460.0,0.00016438,2]
[372902169,1752797438551,-460.0,0.00016438,2]
[372902170,1752797438561,-460.0,0.00016438,2]
[372902171,1752797438571,-460.0,0.00016438,2]
[372902172,1752797438580,-460.0,0.00016438,2]
[372902173,1752797438589,-460.0,0.00016438,2]
[372902174,1752797438599,-460.0,0.00016438,2]
[372902175,1752797438609,-460.0,0.00016438,2]
[372902176,1752797438618,-460.0,0.00016438,2]
[372902177,1752797438628,-460.0,0.00016438,2]
[372902178,1752797438637,-460.0,0.00016438,2]
[372902179,1752797438647,-460.0,0.00016438,2]
[372902180,1752797438656,-460.0,0.00016438,2]
[372902181,1752797438665,-460.0,0.00016438,2]
[372902182,1752797438675,-2003.11,0.00016438,2]
[372902183,1752797438684,-460.0,0.00016438,2]
[372902184,1752797438694,-460.0,0.00016438,2]
[372902185,1752797438707,-500.0,0.00016438,2]
[372902186,1752797438717,-290.0,0.00016438,2]
[372902187,1752797438726,-1450.65,0.00016438,2]
[372902188,1752797438735,-488.86,0.00016438,2]
[372902189,1752797438745,-560.72538807,0.00016438,2]
[372902190,1752797438755,-460.0,0.00016438,2]
[372902191,1752797438767,-460.0,0.00016438,2]
[372902192,1752797438777,-460.0,0.00016438,2]
[372902193,1752797438787,-460.0,0.00016438,2]
[372902194,1752797438797,-460.0,0.00016438,2]
[372902195,1752797438811,-460.0,0.00016438,2]
[372902196,1752797438820,-460.0,0.00016438,2]
[372902197,1752797438829,-460.0,0.00016438,2]
[372902198,1752797438838,-460.0,0.00016438,2]
[372902199,1752797438848,-460.0,0.00016438,2]
[372902200,1752797438858,-460.0,0.00016438,2]
[372902201,1752797438867,-460.0,0.00016438,2]
[372902202,1752797438879,-460.0,0.00016438,2]
[372902203,1752797438889,-1498.98,0.00016438,2]
[372902204,1752797438899,-321.6037398,0.00016438,2]
[372902205,1752797438909,-460.0,0.00016438,2]
[372902206,1752797438918,-460.0,0.00016438,2]
[372902207,1752797438927,-460.0,0.00016438,2]
[372902208,1752797438936,-2226.3,0.00016438,2]
[372902209,1752797438945,-460.0,0.00016438,2]
[372902210,1752797438954,-460.0,0.00016438,2]
[372902211,1752797438964,-460.0,0.00016438,2]
[372902212,1752797438974,-2852.64,0.00016438,2]
[372902213,1752797438983,-460.0,0.00016438,2]
[372902214,1752797438992,-460.0,0.00016438,2]
[372902215,1752797439002,-460.0,0.00016438,2]
[372902216,1752797439012,-674.51,0.00016438,2]
[372902217,1752797439021,-491.26,0.00016438,2]
[372902218,1752797439031,-460.0,0.00016438,2]
[372902219,1752797439040,-599.29,0.00016438,2]
[372902220,1752797439051,-562.19,0.00016438,2]
[372902221,1752797439060,-460.0,0.00016438,2]
[372902222,1752797439075,-2898.84,0.00016438,2]
[372902223,1752797439084,-460.0,0.00016438,2]
[372902224,1752797439094,-460.0,0.00016438,2]
[372902225,1752797439103,-460.0,0.00016438,2]
[372902226,1752797439112,-460.0,0.00016438,2]
[372902227,1752797439121,-460.0,0.00016438,2]
[372902228,1752797439131,-460.0,0.00016438,2]
[372902229,1752797439140,-460.0,0.00016438,2]
[372902230,1752797439150,-460.0,0.00016438,2]
[372902231,1752797439159,-460.0,0.00016438,2]
[372902232,1752797439168,-460.0,0.00016438,2]
[372902233,1752797439178,-460.0,0.00016438,2]
[372902234,1752797439187,-460.0,0.00016438,2]
[372902235,1752797439196,-1471.2,0.00016438,2]
[372902236,1752797439205,-460.0,0.00016438,2]
[372902237,1752797439214,-722.45,0.00016438,2]
[372902238,1752797439224,-460.0,0.00016438,2]
[372902239,1752797439233,-460.0,0.00016438,2]
[372902240,1752797439242,-442.1,0.00016438,2]
[372902241,1752797439252,-1853.03,0.00016438,2]
[372902242,1752797439261,-460.0,0.00016438,2]
[372902243,1752797439271,-460.0,0.00016438,2]
[372902244,1752797439280,-460.0,0.00016438,2]
[372902245,1752797439289,-460.0,0.00016438,2]
[372902246,1752797439299,-460.0,0.00016438,2]
[372902247,1752797439308,-460.0,0.00016438,2]
[372902248,1752797439318,-460.0,0.00016438,2]
[372902249,1752797439327,-460.0,0.00016438,2]
[372902250,1752797439336,-460.0,0.00016438,2]
[372902251,1752797439345,-460.0,0.00016438,2]
[372902252,1752797439354,-492.21478985,0.00016438,2]
[372902253,1752797439364,-460.0,0.00016438,2]
[372902254,1752797439373,-460.0,0.00016438,2]
[372902255,1752797439383,-1096.65,0.00016438,2]
[372902256,1752797439393,-1164.09,0.00016438,2]
[372902257,1752797439403,-460.0,0.00016438,2]
[372902258,1752797439412,-460.0,0.00016438,2]
[372902259,1752797439422,-460.0,0.00016438,2]
[372902260,1752797439432,-4786.0,0.00016438,2]
[372902261,1752797439441,-460.0,0.00016438,2]
[372902262,1752797439450,-460.0,0.00016438,2]
[372902263,1752797439460,-250.78946978,0.00016438,2]
[372902264,1752797439470,-460.0,0.00016438,2]
[372902265,1752797439479,-460.0,0.00016438,2]
[372902266,1752797439489,-460.0,0.00016438,2]
[372902267,1752797439499,-460.0,0.00016438,2]
[372902268,1752797439509,-639.4,0.00016438,2]
[372902269,1752797439519,-555.01922077,0.00016438,2]
[372902270,1752797439528,-460.0,0.00016438,2]
[372902271,1752797439537,-1414.12,0.00016438,2]
[372902272,1752797439547,-460.0,0.00016438,2]
[372902273,1752797439560,-460.0,0.00016438,2]
[372902274,1752797439570,-460.0,0.00016438,2]
[372902275,1752797439579,-460.0,0.00016438,2]
[372902276,1752797439589,-465.57928394,0.00016438,2]
[372902277,1752797439598,-460.0,0.00016438,2]
[372902278,1752797439607,-460.0,0.00016438,2]
[372902279,1752797439617,-460.0,0.00016438,2]
[372902281,1752797439626,-460.0,0.00016472,2]
[372902283,1752797439636,-151.19962036,0.00016472,2]
[372902285,1752797439645,-1384.25,0.00016472,2]
[372902287,1752797439655,-1015.4,0.00016472,2]
[372902288,1752797439664,-9170.61235325,0.00016612,2]
[372902289,1752797439674,-460.0,0.00016712,2]
[372902290,1752797439683,-460.0,0.00016712,2]
[372902291,1752797439693,-460.0,0.00016712,2]
[372902292,1752797439702,-460.0,0.00016712,2]
[372902293,1752797439712,-460.0,0.00016712,2]
[372902294,1752797439721,-460.0,0.00016712,2]
[372902295,1752797439731,-460.0,0.00016712,2]
[372902296,1752797439740,-460.0,0.00016712,2]
[372902297,1752797439750,-460.0,0.00016712,2]
[372902298,1752797439759,-460.0,0.00016712,2]
[372902299,1752797439768,-573.51,0.00016712,2]
[372902300,1752797439779,-460.0,0.00016712,2]
[372902301,1752797439790,-460.0,0.00016712,2]
[372902302,1752797439802,-460.0,0.00016712,2]
[372902303,1752797439814,-460.0,0.00016712,2]
[372902304,1752797439823,-460.0,0.00016712,2]
[372902305,1752797439832,-241.48933732,0.00016712,2]
[372902306,1752797439842,-460.0,0.00016712,2]
[372902307,1752797439854,-435.24,0.00016712,2]
[372902308,1752797439864,-460.0,0.00016712,2]
[372902309,1752797439873,-460.0,0.00016712,2]
[372902310,1752797439885,-460.0,0.00016712,2]
[372902311,1752797439896,-460.0,0.00016712,2]
[372902312,1752797439906,-460.0,0.00016712,2]
[372902313,1752797439915,-460.0,0.00016712,2]
[372902314,1752797439927,-597.62802116,0.00016712,2]
[372902315,1752797439936,-285.73,0.00016712,2]
[372902316,1752797439947,-460.0,0.00016712,2]
[372902317,1752797439956,-2003.11,0.00016712,2]
[372902318,1752797439966,-460.0,0.00016712,2]
[372902319,1752797439976,-460.0,0.00016712,2]
[372902320,1752797439986,-1450.65,0.00016712,2]
[372902321,1752797439996,-460.0,0.00016712,2]
[372902322,1752797440006,-460.0,0.00016712,2]
[372902323,1752797440015,-460.0,0.00016712,2]
[372902324,1752797440024,-460.0,0.00016712,2]
[372902325,1752797440034,-460.0,0.00016712,2]
[372902326,1752797440043,-460.0,0.00016712,2]
[372902327,1752797440052,-460.0,0.00016712,2]
[372902328,1752797440061,-460.0,0.00016712,2]
[372902329,1752797440071,-460.0,0.00016712,2]
[372902330,1752797440080,-1498.98,0.00016712,2]
[372902331,1752797440090,-460.0,0.00016712,2]
[372902332,1752797440099,-460.0,0.00016712,2]
[372902333,1752797440222,-2226.3,0.00016712,2]
[372902334,1752797440232,-2852.64,0.00016712,2]
[372902335,1752797440242,-460.0,0.00016712,2]
[372902336,1752797440252,-674.51,0.00016712,2]
[372902337,1752797440262,-491.26,0.00016712,2]
[372902338,1752797440272,-460.0,0.00016712,2]
[372902339,1752797440282,-599.29,0.00016712,2]
[372902340,1752797440291,-562.19,0.00016712,2]
[372902341,1752797440302,-2898.84,0.00016712,2]
[372902342,1752797440312,-460.0,0.00016712,2]
[372902343,1752797440322,-460.0,0.00016712,2]
[372902344,1752797440331,-460.0,0.00016712,2]
[372902345,1752797440340,-460.0,0.00016712,2]
[372902346,1752797440350,-460.0,0.00016712,2]
[372902347,1752797440359,-460.0,0.00016712,2]
[372902348,1752797440369,-460.0,0.00016712,2]
[372902349,1752797440379,-460.0,0.00016712,2]
[372902350,1752797440389,-460.0,0.00016712,2]
[372902351,1752797440399,-460.0,0.00016712,2]
[372902352,1752797440409,-1471.2,0.00016712,2]
[372902353,1752797440419,-722.45,0.00016712,2]
[372902355,1752797440428,-460.0,0.00016712,2]
[372902356,1752797440438,-460.0,0.00016712,2]
[372902357,1752797440448,-1853.03,0.00016712,2]
[372902358,1752797440458,-460.0,0.00016712,2]
[372902359,1752797440467,-460.0,0.00016712,2]
[372902360,1752797440476,-460.0,0.00016712,2]
[372902361,1752797440486,-460.0,0.00016712,2]
[372902362,1752797440496,-460.0,0.00016712,2]
[372902363,1752797440505,-460.0,0.00016712,2]
[372902364,1752797440515,-460.0,0.00016712,2]
[372902365,1752797440524,-460.0,0.00016712,2]
[372902366,1752797440534,-460.0,0.00016712,2]
[372902367,1752797440543,-460.0,0.00016712,2]
[372902368,1752797440553,-1096.65,0.00016712,2]
[372902369,1752797440562,-1164.09,0.00016712,2]
[372902370,1752797440571,-460.0,0.00016712,2]
[372902371,1752797440582,-460.0,0.00016712,2]
[372902372,1752797440591,-460.0,0.00016712,2]
[372902373,1752797440601,-4786.0,0.00016712,2]
[372902374,1752797440611,-460.0,0.00016712,2]
[372902375,1752797440621,-460.0,0.00016712,2]
[372902376,1752797440630,-460.0,0.00016712,2]
[372902377,1752797440640,-460.0,0.00016712,2]
[372902378,1752797440649,-639.4,0.00016712,2]
[372902379,1752797440659,-460.0,0.00016712,2]
[372902380,1752797440668,-1414.12,0.00016712,2]
[372902381,1752797440678,-460.0,0.00016712,2]
[372902382,1752797440687,-460.0,0.00016712,2]
[372902383,1752797440697,-460.0,0.00016712,2]
[372902384,1752797440706,-465.50350925,0.00016712,2]
[372902385,1752797440715,-460.0,0.00016712,2]
[372902386,1752797440725,-460.0,0.00016712,2]
[372902387,1752797440735,-242.21955512,0.00016712,2]
[372902388,1752797440745,-1384.25,0.00016746,2]
[372902389,1752797440755,-1015.4,0.00016746,2]
[372902390,1752797440765,-270.21104171,0.00016773,2]
[372902391,1752797440775,-1163.72594024,0.00016921,2]
[372902392,1752797440785,-290.38,0.00016976,3]
[372902393,1752797440794,-871.14,0.00016976,3]
[372902394,1752797440807,-460.0,0.00016986,2]
[372902395,1752797440816,-460.0,0.00016986,2]
[372902396,1752797440826,-460.0,0.00016986,2]
[372902397,1752797440835,-460.0,0.00016986,2]
[372902398,1752797440846,-460.0,0.00016986,2]
[372902399,1752797440855,-460.0,0.00016986,2]
[372902400,1752797440864,-460.0,0.00016986,2]
[372902401,1752797440874,-573.51,0.00016986,2]
[372902402,1752797440885,-460.0,0.00016986,2]
[372902403,1752797440896,-460.0,0.00016986,2]
[372902404,1752797440905,-460.0,0.00016986,2]
[372902405,1752797440915,-369.47235491,0.00016986,2]
[372902406,1752797440924,-460.0,0.00016986,2]
[372902407,1752797440933,-460.0,0.00016986,2]
[372902408,1752797440943,-460.0,0.00016986,2]
[372902409,1752797440952,-207.06735334,0.00016986,2]
[372902410,1752797440961,-539.65977616,0.00016986,2]
[372902411,1752797440972,-168.88481711,0.00016986,2]
[372902412,1752797440987,-291.11518289,0.00016986,2]
[372902413,1752797440997,-460.0,0.00016986,2]
[372902414,1752797441006,-460.0,0.00016986,2]
[372902415,1752797441015,-2003.11,0.00016986,2]
[372902416,1752797441025,-460.0,0.00016986,2]
[372902417,1752797441034,-1450.65,0.00016986,2]
[372902418,1752797441043,-460.0,0.00016986,2]
[372902419,1752797441055,-460.0,0.00016986,2]
[372902420,1752797441064,-460.0,0.00016986,2]
[372902421,1752797441074,-460.0,0.00016986,2]
[372902422,1752797441083,-460.0,0.00016986,2]
[372902423,1752797441093,-198.64,0.00016986,2]
[372902424,1752797441103,-1498.98,0.00016986,2]
[372902425,1752797441112,-460.0,0.00016986,2]
[372902426,1752797441121,-2226.3,0.00016986,2]
[372902427,1752797441132,-2852.64,0.00016986,2]
[372902428,1752797441143,-460.0,0.00016986,2]
[372902429,1752797441153,-674.51,0.00016986,2]
[372902430,1752797441163,-491.26,0.00016986,2]
[372902431,1752797441174,-460.0,0.00016986,2]
[372902432,1752797441185,-599.29,0.00016986,2]
[372902433,1752797441195,-562.19,0.00016986,2]
[372902434,1752797441204,-2898.84,0.00016986,2]
[372902435,1752797441213,-460.0,0.00016986,2]
[372902436,1752797441222,-460.0,0.00016986,2]
[372902437,1752797441232,-460.0,0.00016986,2]
[372902438,1752797441241,-460.0,0.00016986,2]
[372902439,1752797441251,-460.0,0.00016986,2]
[372902440,1752797441260,-460.0,0.00016986,2]
[372902441,1752797441269,-460.0,0.00016986,2]
[372902442,1752797441279,-460.0,0.00016986,2]
[372902443,1752797441288,-460.0,0.00016986,2]
[372902444,1752797441298,-1471.2,0.00016986,2]
[372902445,1752797441310,-722.45,0.00016986,2]
[372902446,1752797441320,-460.0,0.00016986,2]
[372902447,1752797441329,-460.0,0.00016986,2]
[372902448,1752797441339,-1853.03,0.00016986,2]
[372902449,1752797441348,-460.0,0.00016986,2]
[372902450,1752797441357,-460.0,0.00016986,2]
[372902451,1752797441367,-460.0,0.00016986,2]
[372902452,1752797441377,-460.0,0.00016986,2]
[372902453,1752797441386,-460.0,0.00016986,2]
[372902454,1752797441395,-460.0,0.00016986,2]
[372902455,1752797441405,-460.0,0.00016986,2]
[372902456,1752797441415,-1096.65,0.00016986,2]
[372902457,1752797441426,-1164.09,0.00016986,2]
[372902458,1752797441435,-460.0,0.00016986,2]
[372902459,1752797441445,-460.0,0.00016986,2]
[372902460,1752797441454,-4786.0,0.00016986,2]
[372902461,1752797441463,-460.0,0.00016986,2]
[372902462,1752797441474,-460.0,0.00016986,2]
[372902463,1752797441484,-460.0,0.00016986,2]
[372902464,1752797441494,-639.4,0.00016986,2]
[372902465,1752797441503,-460.0,0.00016986,2]
[372902466,1752797441513,-1414.12,0.00016986,2]
[372902467,1752797441524,-460.0,0.00016986,2]
[372902468,1752797441534,-460.0,0.00016986,2]
[372902469,1752797441543,-460.0,0.00016986,2]
[372902470,1752797441556,-1384.25,0.0001702,2]
[372902471,1752797441566,-6219.79355738,0.0001702,2]
[372902472,1752797441576,-1015.4,0.0001702,2]
[372902473,1752797441587,-500.0,0.00017152,2]
[372902474,1752797441597,-1013.7788275,0.0001716,2]
[372902475,1752797441607,-500.0,0.00017248,2]
[372902476,1752797441617,-460.0,0.0001726,2]
[372902477,1752797441627,-460.0,0.0001726,2]
[372902478,1752797441636,-460.0,0.0001726,2]
[372902479,1752797441646,-555.60769564,0.0001726,2]
[372902480,1752797441656,-460.0,0.0001726,2]
[372902481,1752797441665,-573.51,0.0001726,2]
[372902482,1752797441675,-460.0,0.0001726,2]
[372902483,1752797441685,-460.0,0.0001726,2]
[372902484,1752797441694,-184.66755445,0.0001726,2]
[372902485,1752797441703,-460.0,0.0001726,2]
[372902486,1752797441713,-460.0,0.0001726,2]
[372902487,1752797441723,-460.0,0.0001726,2]
[372902488,1752797441732,-2003.11,0.0001726,2]
[372902489,1752797441743,-460.0,0.0001726,2]
[372902490,1752797441752,-1450.65,0.0001726,2]
[372902491,1752797441762,-460.0,0.0001726,2]
[372902492,1752797441771,-460.0,0.0001726,2]
[372902493,1752797441782,-460.0,0.0001726,2]
[372902494,1752797441792,-460.0,0.0001726,2]
[372902495,1752797441804,-1498.98,0.0001726,2]
[372902496,1752797441815,-460.0,0.0001726,2]
[372902497,1752797441824,-2226.3,0.0001726,2]
[372902498,1752797441834,-2852.64,0.0001726,2]
[372902499,1752797441845,-460.0,0.0001726,2]
[372902500,1752797441855,-674.51,0.0001726,2]
[372902501,1752797441865,-491.26,0.0001726,2]
[372902502,1752797441875,-460.0,0.0001726,2]
[372902503,1752797441886,-599.29,0.0001726,2]
[372902504,1752797441896,-562.19,0.0001726,2]
[372902505,1752797441905,-2898.84,0.0001726,2]
[372902506,1752797441915,-460.0,0.0001726,2]
[372902507,1752797441924,-460.0,0.0001726,2]
[372902508,1752797441934,-460.0,0.0001726,2]
[372902509,1752797441943,-360.59,0.0001726,2]
[372902510,1752797441953,-460.0,0.0001726,2]
[372902511,1752797441962,-460.0,0.0001726,2]
[372902512,1752797441972,-460.0,0.0001726,2]
[372902513,1752797441983,-460.0,0.0001726,2]
[372902514,1752797441993,-460.0,0.0001726,2]
[372902515,1752797442003,-1471.2,0.0001726,2]
[372902516,1752797442012,-722.45,0.0001726,2]
[372902517,1752797442021,-460.0,0.0001726,2]
[372902518,1752797442031,-460.0,0.0001726,2]
[372902519,1752797442040,-1853.03,0.0001726,2]
[372902520,1752797442049,-460.0,0.0001726,2]
[372902521,1752797442060,-460.0,0.0001726,2]
[372902522,1752797442070,-460.0,0.0001726,2]
[372902523,1752797442079,-460.0,0.0001726,2]
[372902524,1752797442088,-460.0,0.0001726,2]
[372902525,1752797442098,-1096.65,0.0001726,2]
[372902526,1752797442107,-1164.09,0.0001726,2]
[372902527,1752797442116,-460.0,0.0001726,2]
[372902528,1752797442126,-460.0,0.0001726,2]
[372902529,1752797442135,-4786.0,0.0001726,2]
[372902530,1752797442144,-460.0,0.0001726,2]
[372902531,1752797442154,-460.0,0.0001726,2]
[372902532,1752797442163,-460.0,0.0001726,2]
[372902533,1752797442173,-639.4,0.0001726,2]
[372902534,1752797442182,-460.0,0.0001726,2]
[372902535,1752797442191,-1414.12,0.0001726,2]
[372902536,1752797442201,-460.0,0.0001726,2]
[372902537,1752797442211,-460.0,0.0001726,2]
[372902538,1752797442220,-247.99456462,0.00017283,2]
[372902539,1752797442230,-500.0,0.00017289,2]
[372902540,1752797442240,-1384.25,0.00017294,2]
[372902541,1752797442250,-1015.4,0.00017294,2]
[372902542,1752797442259,-500.0,0.00017362,2]
[372902543,1752797442269,-188.36928954,0.00017506,2]
[372902544,1752797442279,-203.39115168,0.00017509,2]
[372902545,1752797442288,-460.0,0.00017534,2]
[372902546,1752797442299,-460.0,0.00017534,2]
[372902548,1752797442312,-573.51,0.00017534,2]
[372902549,1752797442322,-460.0,0.00017534,2]
[372902550,1752797442332,-460.0,0.00017534,2]
[372902551,1752797442342,-460.0,0.00017534,2]
[372902552,1752797442352,-460.0,0.00017534,2]
[372902553,1752797442363,-2003.11,0.00017534,2]
[372902554,1752797442372,-460.0,0.00017534,2]
[372902555,1752797442383,-460.0,0.00017534,2]
[372902556,1752797442392,-1450.65,0.00017534,2]
[372902557,1752797442402,-460.0,0.00017534,2]
[372902558,1752797442412,-460.0,0.00017534,2]
[372902559,1752797442423,-460.0,0.00017534,2]
[372902560,1752797442432,-553.5,0.00017534,2]
[372902561,1752797442442,-1498.98,0.00017534,2]
[372902562,1752797442452,-460.0,0.00017534,2]
[372902563,1752797442462,-2226.3,0.00017534,2]
[372902564,1752797442472,-2852.64,0.00017534,2]
[372902565,1752797442481,-460.0,0.00017534,2]
[372902566,1752797442491,-674.51,0.00017534,2]
[372902567,1752797442500,-491.26,0.00017534,2]
[372902568,1752797442510,-460.0,0.00017534,2]
[372902569,1752797442519,-599.29,0.00017534,2]
[372902570,1752797442529,-562.19,0.00017534,2]
[372902571,1752797442539,-2898.84,0.00017534,2]
[372902572,1752797442548,-460.0,0.00017534,2]
[372902573,1752797442565,-460.0,0.00017534,2]
[372902574,1752797442575,-460.0,0.00017534,2]
[372902575,1752797442585,-460.0,0.00017534,2]
[372902576,1752797442595,-460.0,0.00017534,2]
[372902577,1752797442604,-460.0,0.00017534,2]
[372902578,1752797442615,-460.0,0.00017534,2]
[372902579,1752797442624,-460.0,0.00017534,2]
[372902580,1752797442635,-1471.2,0.00017534,2]
[372902581,1752797442645,-722.45,0.00017534,2]
[372902582,1752797442655,-460.0,0.00017534,2]
[372902583,1752797442664,-1853.03,0.00017534,2]
[372902584,1752797442674,-460.0,0.00017534,2]
[372902585,1752797442683,-460.0,0.00017534,2]
[372902586,1752797442693,-460.0,0.00017534,2]
[372902587,1752797442702,-460.0,0.00017534,2]
[372902588,1752797442712,-460.0,0.00017534,2]
[372902589,1752797442721,-460.0,0.00017534,2]
[372902590,1752797442731,-1164.09,0.00017534,2]
[372902591,1752797442741,-1096.65,0.00017534,2]
[372902592,1752797442751,-460.0,0.00017534,2]
[372902593,1752797442761,-460.0,0.00017534,2]
[372902594,1752797442771,-4786.0,0.00017534,2]
[372902595,1752797442780,-460.0,0.00017534,2]
[372902596,1752797442790,-460.0,0.00017534,2]
[372902597,1752797442804,-639.4,0.00017534,2]
[372902598,1752797442814,-460.0,0.00017534,2]
[372902599,1752797442823,-1414.12,0.00017534,2]
[372902600,1752797442833,-460.0,0.00017534,2]
[372902601,1752797442843,-460.0,0.00017534,2]
[372902602,1752797442852,-1384.25,0.00017568,2]
[372902603,1752797442861,-1015.4,0.00017568,2]
[372902604,1752797442871,-245.0,0.00017595,2]
[372902605,1752797442882,-500.0,0.000177,2]
[372902606,1752797442893,-322.64330876,0.00017708,2]
[372902607,1752797442902,-504.70318548,0.00017795,2]
[372902608,1752797442911,-460.0,0.00017808,2]
[372902609,1752797442920,-460.0,0.00017808,2]
[372902610,1752797442929,-573.51,0.00017808,2]
[372902611,1752797442939,-460.0,0.00017808,2]
[372902612,1752797442948,-460.0,0.00017808,2]
[372902613,1752797442957,-460.0,0.00017808,2]
[372902614,1752797442967,-460.0,0.00017808,2]
[372902615,1752797442977,-2003.11,0.00017808,2]
[372902616,1752797442986,-460.0,0.00017808,2]
[372902617,1752797442996,-460.0,0.00017808,2]
[372902618,1752797443006,-1450.65,0.00017808,2]
[372902619,1752797443015,-460.0,0.00017808,2]
[372902620,1752797443024,-460.0,0.00017808,2]
[372902621,1752797443034,-1498.98,0.00017808,2]
[372902622,1752797443044,-460.0,0.00017808,2]
[372902623,1752797443055,-2226.3,0.00017808,2]
[372902624,1752797443065,-2852.64,0.00017808,2]
[372902625,1752797443074,-460.0,0.00017808,2]
[372902626,1752797443083,-674.51,0.00017808,2]
[372902627,1752797443092,-491.26,0.00017808,2]
[372902628,1752797443101,-460.0,0.00017808,2]
[372902629,1752797443111,-562.19,0.00017808,2]
[372902630,1752797443120,-599.29,0.00017808,2]
[372902631,1752797443130,-2898.84,0.00017808,2]
[372902632,1752797443139,-460.0,0.00017808,2]
[372902633,1752797443149,-460.0,0.00017808,2]
[372902634,1752797443255,-460.0,0.00017808,2]
[372902635,1752797443265,-460.58,0.00017808,2]
[372902636,1752797443275,-266.26419911,0.00017808,2]
[372902637,1752797443284,-460.0,0.00017808,2]
[372902638,1752797443293,-460.0,0.00017808,2]
[372902639,1752797443304,-460.0,0.00017808,2]
[372902640,1752797443314,-1471.2,0.00017808,2]
[372902641,1752797443324,-722.45,0.00017808,2]
[372902642,1752797443334,-1853.03,0.00017808,2]
[372902643,1752797443343,-460.0,0.00017808,2]
[372902644,1752797443358,-460.0,0.00017808,2]
[372902645,1752797443370,-460.0,0.00017808,2]
[372902646,1752797443379,-460.0,0.00017808,2]
[372902647,1752797443389,-460.0,0.00017808,2]
[372902648,1752797443398,-460.0,0.00017808,2]
[372902649,1752797443408,-1164.09,0.00017808,2]
[372902650,1752797443418,-1096.65,0.00017808,2]
[372902651,1752797443428,-460.0,0.00017808,2]
[372902652,1752797443438,-235.06919553,0.00017808,2]
[372902653,1752797443447,-4786.0,0.00017808,2]
[372902654,1752797443457,-460.0,0.00017808,2]
[372902655,1752797443467,-460.0,0.00017808,2]
[372902656,1752797443476,-639.4,0.00017808,2]
[372902657,1752797443486,-460.0,0.00017808,2]
[372902658,1752797443496,-1414.12,0.00017808,2]
[372902659,1752797443506,-460.0,0.00017808,2]
[372902660,1752797443515,-460.0,0.00017808,2]
[372902661,1752797443524,-1000.0,0.00017837,2]
[372902662,1752797443534,-1384.25,0.00017842,2]
[372902663,1752797443544,-1015.4,0.00017842,2]
[372902664,1752797443556,-500.0,0.00017849,2]
[372902665,1752797443565,-500.0,0.00017849,2]